{"text_format":"1","workbook":"xlsx","n_sheets":1,"sheets":["ETAP II"],"not_rendered":{"charts":0,"images":0,"macros":0,"external_links":0,"defined_names":0,"comments":0,"pivot_tables":0},"unopened":[],"bounds":{"document_bytes":16777216,"sheet_cells":100000,"rows_first":2000,"rows_last":500,"rows_between":2000,"halvings":0,"cell_chars":16384,"cell_head_chars":4096},"cells_cut":0,"cells_raw":0,"read":"whole","date_system":"1900"}

{"sheet":"ETAP II","index":0,"n_rows":59,"n_cols":17,"rows_kept":59,"cut":false,"hidden":false,"merged":[[2,2,2,16],[31,2,31,14],[30,1,30,5],[0,1,0,16]]}
[null,"Harmonogram realizacji w Zachęcie - Narodowej Galerii Sztuki w Warszawie"]
[]
[null,"RODZAJ PRAC MODERNIZACYJNYCH I ETAP - 2018","Początek kolejnego tygodnia realizacji"]
[null,null,"wartość robót","2018-10-01",{"$f":"D4+7","v":"2018-10-08"},{"$f":"E4+7","v":"2018-10-15"},"2018-10-22","2018-10-29","2018-11-05","2018-11-12","2018-11-19","2018-11-26","2018-12-03","2018-12-10","2018-12-17","2018-12-24","2018-12-31"]
[null,"1. Prace demontażowe"]
[null," - demontaże budowlane w strefie modernizacji"]
[null," - demontaże instalacyjne w strefie modernizacji"]
[null,"2. Roboty budowlane przygotowawcze , zabezpieczające i wykończeniowe"]
[null,"3. Aranżacja akustyczna sali "]
[null," - wykonanie systemu podkonstrukcji sufitów akustycznych"]
[null," - montaż płyt akustycznych sufitu"]
[null," - wykonanie podkonstrukcji ustrojów akustycznych na ścianach"]
[null," - wykonanie okładzin akustycznych z MDF i tkaninowych"]
[null,"4. Instalacje elektryczne"]
[null," - okablowanie zasilające sali i kabiny wraz z tablicami rozdzielczymi"]
[null," -  wykonanie instalacji niskoprądowych i sterowania "]
[null," - dostawa i montaż opraw oświetleniowych "]
[null," - dostawa i montaż osprzętu "]
[null," - pomiary i i uruchomienie instalacji"]
[null,"5. Modyfikacja i uruchomienie instalacji wentylacji i klimatzacji"]
[null,"6. Dostawa i montaż trybuny mobilnej z fotelami"]
[null,"7. Dostawa i montaż wyposażenia kinotechniki"]
[null,"8. Dostawa i montaż wyposażenia audio "]
[null,"9. Uruchomienia i testy systemów "]
[null,"10. Odbiory"]
[null,"11. RAZEM WARTOŚĆ"]
[]
[]
[]
[]
[]
[null,"RODZAJ PRAC MODERNIZACYJNYCH II ETAP - 2019","Początek kolejnego tygodnia realizacji"]
[null,null,"wartość robót",{"$f":"Q4+7","v":"2019-01-07"},{"$f":"D33+7","v":"2019-01-14"},{"$f":"E33+7","v":"2019-01-21"},{"$f":"F33+7","v":"2019-01-28"},{"$f":"G33+7","v":"2019-02-04"},{"$f":"H33+7","v":"2019-02-11"},{"$f":"I33+7","v":"2019-02-18"},{"$f":"J33+7","v":"2019-02-25"},{"$f":"K33+7","v":"2019-03-04"},{"$f":"L33+7","v":"2019-03-11"},{"$f":"M33+7","v":"2019-03-18"},{"$f":"N33+7","v":"2019-03-25"}]
[null,"1. Prace demontażowe"]
[null," - demontaże budowlane w strefie modernizacji"]
[null," - demontaże instalacyjne w strefie modernizacji"]
[null,"2. Roboty budowlane przygotowawcze , zabezpieczające i wykończeniowe"]
[null,"3. Aranżacja akustyczna sali "]
[null," - wykonanie systemu podkonstrukcji sufitów akustycznych"]
[null," - montaż płyt akustycznych sufitu"]
[null," - wykonanie podkonstrukcji ustrojów akustycznych na ścianach"]
[null," - wykonanie okładzin akustycznych z MDF i tkaninowych"]
[null,"4. Instalacje elektryczne"]
[null," - okablowanie zasilające sali i kabiny wraz z tablicami rozdzielczymi"]
[null," -  wykonanie instalacji niskoprądowych i sterowania "]
[null," - dostawa i montaż opraw oświetleniowych "]
[null," - dostawa i montaż osprzętu "]
[null," - pomiary i i uruchomienie instalacji"]
[null,"5. Modyfikacja i uruchomienie instalacji wentylacji i klimatzacji"]
[null,"6. Dostawa i montaż trybuny mobilnej z fotelami"]
[null,"7. Dostawa i montaż wyposażenia kinotechniki"]
[null,"8. Dostawa i montaż wyposażenia audio "]
[null,"9. Uruchomienia i testy systemów "]
[null,"10. Odbiory"]
[null,"11. RAZEM WARTOŚĆ"]
[]
[null,"Uwagi ogólne"]
[null,"Montaż paneli akustycznych oraz dostawa urządzeń elektronicznych wymaga zakończenia wszelkich prac budowlanych i zapewnienia"]
[null,"w pomieszczeniach temperatury i wilgotności pokojowej (temp min. 16 stC, wilgotnośc 40%-60%)"]